Cogmind - Beta 13 @@@ ROGUE MODE // 2024.07.01 @ 02:43:52 Player: Jahimaih Green Turtle Result: Destroyed by X-67 Chaingunner with Minigun Performance ------------- Evolutions (3) 1500 Regions Visited (6) 1200 Robots Destroyed (119) 595 Value Destroyed (4513) 4513 Prototype IDs (3) 60 Alien Tech Used (0) 0 Bonus (1116) 1116 TOTAL SCORE: 8984 Bonus ------- High Alert Combat Kills 220 Follower Combat Kills 196 Entered Garrisons 200 Used RIF Installer 500 Cogmind --------- Core Integrity 0/700 Matter 144/300 Energy 65/100 System Corruption 4% Temperature Cool (0) Movement Walking (190) Ox1 Location -7/Factory Parts ------- > --- POWER (1) -------- (None) > --- PROPULSION (4) --- Carbon-fiber Leg > --- UTILITY (5) ------ Large Storage Unit Hacking Suite System Shield Relay Coupler [NC] (16) Relay Coupler [Grunt] (21) > --- WEAPON (3) ------- Spear > --- INVENTORY (15) --- High-capacity Storage Unit Improved Sensor Array Reactive Plating Reactive Plating Relay Coupler [Hunter] (13) Improved EM Pulse Cannon Rocket Launcher Mini Grenade Launcher Peak State ------------ > --- POWER ------------ Micro Nuclear Core > --- PROPULSION ------- Improved Titanium Leg Improved Titanium Leg Improved Titanium Leg Improved Titanium Leg > --- UTILITY ---------- Large Storage Unit Reactive Plating Relay Coupler [NC] Relay Coupler [Grunt] Relay Coupler [Heavy] > --- WEAPON ----------- Remote Datajack Katana Spear > --- INVENTORY -------- Carbon-fiber Leg High-capacity Storage Unit Improved Sensor Array Reactive Plating Reactive Plating Hacking Suite System Shield Relay Coupler [Hunter] Improved EM Pulse Cannon Rocket Launcher Mini Grenade Launcher Heavy Rocket Launcher Heavy Rocket Launcher [Rating: 49] Favorites ----------- Power Light Deuterium Engine Engine Light Deuterium Engine Power Core Micro Nuclear Core Propulsion Aluminum Leg Treads Improved Treads Leg Aluminum Leg Wheel Compact Wheel Utility Reactive Plating Device Sensor Array Storage Large Storage Unit Processor Signal Interpreter Hackware Relay Coupler [NC] Protection Reactive Plating Weapon Hammer Energy Gun Particle Gun Energy Cannon Improved EM Pulse Cannon Ballistic Gun Light Assault Rifle Ballistic Cannon Improved Light Cannon Launcher Rocket Launcher Special Weapon Remote Datajack Impact Weapon Hammer Slashing Weapon Katana Piercing Weapon Spear Special Melee Weapon Datajack Build | -11 -10 -9 -8 -8 -8 -7 ------- Run | Yrd Mat Mat Mat Gar Mat Fac Slots Evolved 6 | . . 2 2 . . 2 Power . | . . . . . . . Propulsion 2 | . . . 1 . . 1 Utility 3 | . . 1 1 . . 1 Weapon 1 | . . 1 . . . . Parts Attached 108 | 6 13 17 11 14 21 26 Power 7 | 1 . 2 1 . 2 1 Engine 6 | 1 . 2 1 . 2 . Core 1 | . . . . . . 1 Reactor . | . . . . . . . Propulsion 34 | 2 2 5 3 5 7 10 Treads 5 | 2 . 2 . . . 1 Leg 25 | . 2 3 . 4 7 9 Wheel 4 | . . . 3 1 . . Hover . | . . . . . . . Flight . | . . . . . . . Utility 30 | 1 4 6 3 4 6 6 Device 10 | . 2 3 1 1 . 3 Storage 3 | 1 1 1 . . . . Processor 1 | . 1 . . . . . Hackware 5 | . . . . . 2 3 Protection 11 | . . 2 2 3 4 . Artifact . | . . . . . . . Weapon 37 | 2 7 4 4 5 6 9 Energy Gun 8 | 1 5 2 . . . . Energy Cannon 3 | . . . . 1 1 1 Ballistic Gun 1 | 1 . . . . . . Ballistic Cannon 3 | . . 1 2 . . . Launcher 13 | . . 1 2 3 3 4 Special Weapon 2 | . . . . . . 2 Impact Weapon 1 | . 1 . . . . . Slashing Weapon 2 | . . . . 1 1 . Piercing Weapon 2 | . . . . . . 2 Special Melee Weapon 2 | . 1 . . . 1 . Unidentified Prototypes . | . . . . . . . Parts Lost 37 | . . 4 6 5 6 16 Power 5 | . . . 1 . 2 2 Propulsion 16 | . . 1 2 4 1 8 Utility 5 | . . 1 2 . 1 1 Weapon 11 | . . 2 1 1 2 5 Highest Loss Streak 9 | . . 4 4 1 3 9 To Critical Strikes . | . . . . . . . Average Slot Usage (%) 92 | . 96 87 75 99 92 93 Engine 9 | . 14 11 7 9 8 4 Treads 7 | . 10 16 7 . . 2 Leg 14 | . 17 4 . 13 25 24 Wheel 2 | . . . 4 13 1 . Device 4 | . 9 2 9 . . 5 Storage 10 | . 14 11 9 9 9 7 Processor 3 | . . 11 9 . . . Hackware 4 | . . . . . 15 17 Protection 9 | . . 8 9 25 10 5 Energy Gun 4 | . 14 4 . . . . Ballistic Gun 1 | . 4 . . . . . Ballistic Cannon 1 | . . 6 7 . . . Launcher 5 | . . . 3 21 7 3 Special Weapon 1 | . . . . . . 6 Impact Weapon 5 | . 8 11 9 . . . Slashing Weapon 2 | . . . . 3 8 7 Naked Turns . | . . . . . . . Heaviest Build 58 | 13 21 41 46 58 56 44 Greatest Support 80 | 40 40 46 46 36 48 80 Greatest Overweight (x) 12 | 3 1 6 12 3 3 1 Average Overweight (x) . | . . . 1 2 . . Largest Inventory Capacity 15 | 8 10 15 15 15 15 15 Average Capacity 12 | 7 8 12 15 15 15 15 Most Carried 15 | 4 10 15 14 15 15 15 Average Carried 11 | 2 6 11 13 14 14 10 Final Capacity 15 | 8 10 15 15 15 15 15 Final Carried 15 | 4 10 15 12 15 12 8 Class Distribution -------------------- 60% | Mutant 20% | Scavenger-Mutant 10% | Tank 8% | Bothacker-Mutant Dominant Class ---------------- Mutant | -10/Materials Mutant | -9/Materials Mutant | -8/Materials Tank | -8/Garrison Scavenger-Mutant | -8/Materials Scavenger-Mutant | -7/Factory Resources | -11 -10 -9 -8 -8 -8 -7 ----------- Run | Yrd Mat Mat Mat Gar Mat Fac Matter Collected 2353 | 215 391 289 265 610 263 320 Remotely 30 | . . . . 30 . . Salvage Created 3872 | . 598 896 564 472 831 511 Parts 170 | . 20 38 16 16 45 35 Haulers Intercepted 6 | . 2 1 . . 2 1 Recyclers Shooed 2 | . . . 2 . . . Parts Field Recycled . | . . . . . . . Retrieved Matter . | . . . . . . . Parts Self-Destructed . | . . . . . . . Prevented . | . . . . . . . Kills | -11 -10 -9 -8 -8 -8 -7 ------- Run | Yrd Mat Mat Mat Gar Mat Fac Combat Hostiles Destroyed 79 | . 11 15 9 20 14 10 Melee 27 | . 5 6 4 . 6 6 Guns 6 | . 6 . . . . . Cannons 2 | . . . 2 . . . AOE 32 | . . . . 20 8 4 Classes Destroyed 17 | . 6 5 1 3 . 2 Worker 6 | . . 1 1 . 3 1 Builder 5 | . . 3 1 . . 1 Tunneler 2 | . . 1 . . 1 . Hauler 6 | . 2 1 . . 2 1 Recycler 9 | . 1 3 2 . 3 . Mechanic 1 | . . . . . . 1 Operator 5 | . 2 2 . . . 1 Watcher 6 | . 1 3 . 1 . 1 Swarmer 7 | . 2 3 . . 2 . Cutter 3 | . . . . 3 . . Grunt 47 | . 9 8 6 11 9 4 Brawler 1 | . . 1 . . . . Duelist 3 | . . . . 2 1 . Sentry 9 | . . 3 2 . 2 2 Specialist 3 | . . . . 2 . 1 Hunter 2 | . . . 1 1 . . Programmer 3 | . . . . . . 3 Guerrilla 1 | . . . . 1 . . Best Kill Streak 10 | . 4 10 4 5 7 5 Combat Bots Only 5 | . 2 4 4 5 3 2 Max Kills in Single Turn 8 | . 1 8 1 4 3 2 Gunslinging . | . . . . . . . Exploded 4 | . . . . 4 1 1 Melee 1 | . 1 1 1 . 1 1 Uniques/NPCs Destroyed . | . . . . . . . Combat | -11 -10 -9 -8 -8 -8 -7 -------- Run | Yrd Mat Mat Mat Gar Mat Fac Hostile Shots Fired 503 | . 58 83 83 34 54 191 Missed 132 | . 13 17 18 12 13 59 Damage Taken 6694 | . 656 910 921 892 726 2589 Core 1543 | . 195 208 223 68 134 715 Absorbed by Shields . | . . . . . . . Ignored by Resistances 167 | . . 35 66 12 14 40 Regen/Repaired (Parts) 60 | . 60 . . . . . Core Remaining (%) 48 | 100 22 48 . . 22 . Volleys Fired 150 | . 37 7 22 43 10 31 Largest 3 | . 2 2 1 3 1 1 Hottest 110 | . 105 110 44 99 30 69 Shots Fired 198 | . 74 12 22 47 10 33 Gun 82 | . 74 8 . . . . Cannon 27 | . . 2 22 2 . 1 Launcher 70 | . . 2 . 45 10 13 Special 19 | . . . . . . 19 Kinetic 60 | . 36 2 22 . . . Thermal 42 | . 37 5 . . . . Explosive 70 | . . 2 . 45 10 13 Electromagnetic 7 | . 1 3 . 2 . 1 Robot Hit Streak 8 | . 8 4 7 6 2 7 Robot Miss Streak 6 | . 4 1 6 2 . 5 Penetration Max . | . . . . . . . Secondary Targets . | . . . . . . . Shots Hit Robots 264 | . 68 52 51 22 28 43 Core Hits 193 | . 23 15 24 59 42 30 Critical Kills 2 | . . 1 1 . . . Critical Parts Destroyed 16 | . 4 6 6 . . . Critical Strikes 23 | . 4 7 9 . 2 1 Blast 2 | . . . 2 . . . Smash 18 | . 4 7 7 . . . Sever 2 | . . . . . 2 . Impale 1 | . . . . . . 1 Melee Attacks 227 | . 30 73 40 3 34 47 Impact 141 | . 28 73 40 . . . Slashing 72 | . . . . 3 27 42 Piercing 5 | . . . . . . 5 Sneak Attacks 21 | . 7 3 1 . 8 2 Combat Hostiles . | . . . . . . . Follow-up Attacks 3 | . . . . . . 3 Damage Inflicted 11039 | . 1173 2211 1091 2698 1941 1925 Guns 520 | . 504 16 . . . . Cannons 402 | . . 40 330 . . 32 Explosions 5825 | . . 882 . 2685 1174 1084 Melee 4292 | . 669 1273 761 13 767 809 Ramming . | . . . . . . . Kinetic 563 | . 193 40 330 . . . Thermal 1127 | . 311 816 . . . . Explosive 4842 | . . 82 . 2685 991 1084 Electromagnetic 215 | . . . . . 183 32 Impact 2703 | . 669 1273 761 . . . Slashing 1524 | . . . . 13 767 744 Piercing 65 | . . . . . . 65 Highest Corruption 6 | . . 6 . . . 4 Average Corruption 4 | . . 5 . . . 3 Corruption Purged . | . . . . . . . Corruption Blocked . | . . . . . . . Effects 60 | . . 40 . . . 20 Message Errors 14 | . . 10 . . . 4 Matter Fused 16 | . . 13 . . . 3 Heat Flow Errors 6 | . . 5 . . . 1 Energy Discharges 5 | . . 3 . . . 2 Parts Rejected 1 | . . . . . . 1 Parts Fused 2 | . . 1 . . . 1 Data Loss (minor) 7 | . . 3 . . . 4 Data Loss (major) 1 | . . 1 . . . . Misfires 4 | . . 2 . . . 2 Alerts 4 | . . 2 . . . 2 Overload Shots . | . . . . . . . Overflow Damage 1103 | . 152 646 124 60 42 79 Projectiles . | . . . . . . . Explosions 497 | . . 383 . 60 20 34 Melee 606 | . 152 263 124 . 22 45 Knockbacks 27 | . . 8 19 . . . Impact 12 | . . 7 5 . . . Kinetic 12 | . . . 12 . . . Secondary 3 | . . 1 2 . . . Self-Inflicted Damage 1180 | . . 98 . 489 89 504 Shots 34 | . . 1 . 18 3 12 Rammed . | . . . . . . . Targets Rammed . | . . . . . . . Kicked . | . . . . . . . Crushed . | . . . . . . . Highest Temperature 276 | . 162 177 9 156 10 276 Average Temperature 54 | . 48 64 7 53 5 92 Received Heat Transfer 1890 | . 270 309 522 189 315 285 Siege Activations . | . . . . . . . Robots Corrupted . | . . . . . . . Combat Hostiles . | . . . . . . . Parts Fried 24 | . 7 15 2 . . . Impact Corruptions 32 | . 9 16 7 . . . Robots Melted . | . . . . . . . Combat Hostiles . | . . . . . . . Parts Melted 2 | . 2 . . . . . Heat Transferred 1388 | . 851 537 . . . . Parts Sabotaged . | . . . . . . . Parts Stolen . | . . . . . . . Parts Stripped . | . . . . . . . Power Chain Reactions . | . . . . . . . Alert | -11 -10 -9 -8 -8 -8 -7 ------- Run | Yrd Mat Mat Mat Gar Mat Fac Peak Influence 1029 | . 199 363 202 1029 757 215 Initial 501 | . . 5 2 53 501 149 Average 208 | . 76 114 86 530 483 89 Maximum Alert Level 3 | . . 1 1 3 3 1 Low Security (%) 66 | 100 100 72 81 12 . 96 Level 1 15 | . . 27 18 21 36 3 Level 2 13 | . . . . 39 60 . Level 3 4 | . . . . 25 2 . Level 4 . | . . . . . . . Level 5 . | . . . . . . . High Security . | . . . . . . . Max Security . | . . . . . . . Squads Dispatched 15 | . 2 3 1 . 1 8 Investigation 3 | . . 2 1 . . . Extermination 4 | . . . . . . 4 Reinforcement 8 | . 2 1 . . 1 4 Assault . | . . . . . . . Garrison . | . . . . . . . Intercept . | . . . . . . . Searches Triggered . | . . . . . . . Construction Impeded 1 | . . . . . . 1 Haulers Reinforced . | . . . . . . . Active Scanning Responses . | . . . . . . . Cargo Convoy Interrupts 1 | . . . . . . 1 Stealth | -11 -10 -9 -8 -8 -8 -7 --------- Run | Yrd Mat Mat Mat Gar Mat Fac Distress Signals 12 | . 4 . 1 . 4 3 Communications Jammed . | . . . . . . . Distress Signals . | . . . . . . . Times Spotted 138 | . 29 26 18 24 24 17 Peak Tracking Total 6 | . 4 5 5 4 6 4 Tactical Retreats 5 | . 1 1 . 1 . 2 Traps | -11 -10 -9 -8 -8 -8 -7 ------- Run | Yrd Mat Mat Mat Gar Mat Fac Traps Triggered 4 | . . 1 . 3 . . Indirectly . | . . . . . . . Trap Hack Attempts . | . . . . . . . Triggered . | . . . . . . . Disarmed . | . . . . . . . Reprogrammed . | . . . . . . . Reused . | . . . . . . . Traps Extracted . | . . . . . . . Installed . | . . . . . . . Triggered 1 | . . . . . . 1 Machines | -11 -10 -9 -8 -8 -8 -7 ---------- Run | Yrd Mat Mat Mat Gar Mat Fac Machines Disabled 12 | . . 5 . 4 2 1 Max in Single Turn 4 | . . 4 . 1 1 1 Garrison Relay 4 | . . . . 4 . . Machines Repaired . | . . . . . . . Machines Dismantled . | . . . . . . . Machines Sabotaged . | . . . . . . . Overloaded Fab Kills . | . . . . . . . Hacking | -11 -10 -9 -8 -8 -8 -7 --------- Run | Yrd Mat Mat Mat Gar Mat Fac Machines Accessed 32 | . 8 5 5 2 8 4 Terminals 21 | . 5 4 2 2 5 3 Fabricators 1 | . . . . . . 1 Repair Stations 4 | . 1 1 1 . 1 . Recycling Units 4 | . 2 . 1 . 1 . Scanalyzers 1 | . . . . . 1 . Garrison Access 1 | . . . 1 . . . Total Hacks 77 | . 22 15 11 5 18 6 Successful 25 | . 9 7 2 1 5 1 Failed 52 | . 13 8 9 4 13 5 Catastrophic 15 | . 2 1 4 1 4 3 Database Lockouts . | . . . . . . . Manual 30 | . 13 1 1 2 9 4 Terminals 53 | . 15 12 4 5 12 5 Fabricators 1 | . . . . . . 1 Repair Stations 10 | . 2 3 3 . 2 . Recycling Units 11 | . 5 . 3 . 3 . Scanalyzers 1 | . . . . . 1 . Garrison Access 1 | . . . 1 . . . Terminal Hacks 16 | . 4 6 1 1 4 . Robot Analysis 4 | . 1 1 . . 2 . Prototype ID Bank 1 | . . 1 . . . . Alert Level 5 | . 2 2 1 . . . Unreport Threat 4 | . . 2 . . 2 . Locate Traps 1 | . 1 . . . . . Security Stations 1 | . . . . 1 . . Fabricator Hacks 1 | . . . . . . 1 Build 1 | . . . . . . 1 Repair Station Hacks 4 | . 2 1 . . 1 . Scan Component 3 | . 1 1 . . 1 . Repair 1 | . 1 . . . . . Recycling Unit Hacks 3 | . 3 . . . . . Retrieve Matter 1 | . 1 . . . . . Retrieve Components 2 | . 2 . . . . . Scanalyzer . | . . . . . . . Garrison Access Hacks 1 | . . . 1 . . . Unlock Access 1 | . . . 1 . . . Unauthorized Hacks . | . . . . . . . Terminals . | . . . . . . . Fabricators . | . . . . . . . Repair Stations . | . . . . . . . Recycling Units . | . . . . . . . Scanalyzers . | . . . . . . . Garrison Access . | . . . . . . . Data Cores Recovered 1 | . . . . . 1 . Used . | . . . . . . . Hacking Detections 30 | . 7 5 4 2 8 4 Full Trace Events 2 | . . 1 1 . . . Feedback Events . | . . . . . . . Feedback Blocked . | . . . . . . . Robot Schematics Acquired . | . . . . . . . Robots Built . | . . . . . . . Authchips . | . . . . . . . Time . | . . . . . . . Total Robot Build Rating . | . . . . . . . Part Schematics Acquired . | . . . . . . . Parts Built 2 | . . . . . . 2 Authchips . | . . . . . . . Time 53 | . . . . . . 53 Total Part Build Rating 12 | . . . . . . 12 Parts Repaired 1 | . 1 . . . . . Time 32 | . 32 . . . . . Parts Recycled . | . . . . . . . Recycled Matter . | . . . . . . . Retrieved Matter . | . . . . . . . Retrieved Components 13 | . 13 . . . . . Parts Scanalyzed . | . . . . . . . Part Schematics Acquired . | . . . . . . . Parts Damaged . | . . . . . . . Bothacking | -11 -10 -9 -8 -8 -8 -7 ------------ Run | Yrd Mat Mat Mat Gar Mat Fac Used RIF Installer 1 | . . . . 1 . . Robots Hacked 15 | . 1 . . . 4 10 Non-combat 12 | . 1 . . . 2 9 Combat 3 | . . . . . 2 1 Robot Hacks Applied 16 | . 2 . . . 4 10 parse_system 2 | . . . . . 2 . no_distress 4 | . . . . . 2 2 find_chute 1 | . . . . . . 1 hold_bot 1 | . . . . . . 1 ignore_repairs 1 | . . . . . . 1 map_earth 1 | . . . . . . 1 ignore_parts 2 | . . . . . . 2 check_alert 2 | . 2 . . . . . locate_traps 1 | . . . . . . 1 disable_weapons 1 | . . . . . . 1 Relay Couplers Released 15 | . . . . 15 . . Machine Destruction 15 | . . . . 15 . . Attached 3 | . . . . . 2 1 Fabnet Peak Effective % . | . . . . . . . Robots Rewired 5 | . . . . 5 . . Allies Hacked . | . . . . . . . Hacks Repelled . | . . . . . . . Allies | -11 -10 -9 -8 -8 -8 -7 -------- Run | Yrd Mat Mat Mat Gar Mat Fac Total Allies 5 | . . . . 5 . . Largest Group 3 | . . . . 3 2 . Highest-Rated Group 63 | . . . . 63 42 . Highest-Rated Ally 31 | . . . . 31 21 . Total Orders 2 | . . . . 2 . . FOLLOW 1 | . . . . 1 . . AID 1 | . . . . 1 . . Ally Attacks 30 | . . . . 26 4 . Total Damage 613 | . . . . 485 128 . Kills 7 | . . . . 5 2 . Allies Corrupted . | . . . . . . . Allies Melted . | . . . . . . . Intel | -11 -10 -9 -8 -8 -8 -7 ------- Run | Yrd Mat Mat Mat Gar Mat Fac Robot Analysis Total 4 | . 1 1 . . 2 . Derelict Logs Recovered . | . . . . . . . Drone Launches . | . . . . . . . Drone Recoveries . | . . . . . . . Exploration | -11 -10 -9 -8 -8 -8 -7 ------------- Run | Yrd Mat Mat Mat Gar Mat Fac Turns Passed 8347 | 70 2113 1687 779 1438 891 1369 Spaces Moved 4359 | 42 970 866 323 905 530 723 Core 23 | 12 . 5 6 . . . Treads 1098 | 30 177 700 191 . . . Legs 2140 | . 793 161 . . 463 723 Wheels 1098 | . . . 126 905 67 . Hover . | . . . . . . . Flight . | . . . . . . . Fastest Speed 50 | 50 120 120 101 101 120 120 Average Speed 145 | 132 149 155 182 132 123 143 Slowest Speed 650 | 200 190 350 650 145 190 190 Overloaded Moves . | . . . . . . . Propulsion Burnouts . | . . . . . . . Robots Hopped . | . . . . . . . Cave-ins Triggered . | . . . . . . . Exploration Rate (%) 42 | 5 100 56 16 73 34 15 Regions Visited 6 Branch Regions . Pre-discovered Areas . | . . . . . . . Known Exits Taken 3 | . 1 1 1 . . . Unknown Exits Taken 2 | 1 . . . . 1 . Scrap Searched . | . . . . . . . Spaces Dug 75 | . 1 10 . 49 . 15 Terrain Destroyed 514 | . 1 42 . 313 88 70 Melee 22 | . 1 10 . . . 11 Projectile . | . . . . . . . AOE 492 | . . 32 . 313 88 59 Terrain Rammed . | . . . . . . . Walls Destroyed . | . . . . . . . Machines Disabled . | . . . . . . . Actions | -11 -10 -9 -8 -8 -8 -7 --------- Run | Yrd Mat Mat Mat Gar Mat Fac Total 5858 | 57 1517 1077 421 1096 717 973 Wait 754 | . 443 64 17 9 96 125 Move 4354 | 41 969 865 323 904 529 723 Hop . | . . . . . . . Pick Up 107 | 10 14 29 6 22 12 14 Fast Attach 8 | . 3 2 . 2 1 . Attach 74 | 6 3 12 11 7 13 22 Detach 14 | . 1 1 2 1 3 6 Swap 26 | . 7 3 . 5 7 4 Drop 65 | . 10 21 . 17 12 5 Fire 150 | . 37 7 22 43 10 31 Melee 223 | . 30 73 40 3 34 43 Ram . | . . . . . . . Kick . | . . . . . . . Crush . | . . . . . . . Escape Stasis 16 | . . . . 16 . . Rewire 67 | . . . . 67 . . Trap . | . . . . . . . Miscellaneous . | . . . . . . . Route ------- -11/Scrapyard -10/Materials (discovered 5 exits: *Mat x3 / [*Min] / *Sub) -9/Materials (discovered 2 exits: *Mat x2) -8/Materials (discovered 3 exits: *Sto x2 / Gar) -8/Garrison (discovered 2 exits: *Mat x2) -8/Materials -7/Factory History --------- Turn | Location | Event 12 | -11/Scrapyard | Discovered new exit (range 15) 71 | -11/Scrapyard | Entered Materials 300 | -10/Materials | Build established: Mutant 670 | -10/Materials | Core integrity fell below 50% 787 | -10/Materials | Discovered new exit (range 15) 1014 | -10/Materials | Discovered new exit (range 14) 1362 | -10/Materials | Repaired Particle Gun 1493 | -10/Materials | Discovered new exit (range 8) 1672 | -10/Materials | Discovered new exit (range 16) 1888 | -10/Materials | Discovered new exit (range 15) 2102 | -10/Materials | Identified exit to Subcaves 2183 | -10/Materials | Identified exit to Materials 2184 | -10/Materials | Entered another Materials area 2184 | -9/Materials | Evolved 2 slots: Utility x1, Weapon x1 2593 | -9/Materials | Lost 4 parts (1n1u2w) 2882 | -9/Materials | Discovered new exit (range 12) 3440 | -9/Materials | Core integrity fell below 50% 3461 | -9/Materials | Discovered new exit (range 12) 3491 | -9/Materials | Identified exit to Materials 3871 | -9/Materials | Entered another Materials area 3871 | -8/Materials | Evolved 2 slots: Propulsion x1, Utility x1 3872 | -8/Materials | Discovered new exit (range 15) 4305 | -8/Materials | Discovered new exit (range 15) 4471 | -8/Materials | Lost 4 parts (1p1n1u1w) 4505 | -8/Materials | Identified exit to Storage 4650 | -8/Materials | Identified exit to Garrison 4650 | -8/Materials | Entered Garrison 4828 | -8/Garrison | Triggered checkpoint 5148 | -8/Garrison | Garrison Relay disabled 5208 | -8/Garrison | Triggered checkpoint 5226 | -8/Garrison | Triggered checkpoint 5241 | -8/Garrison | Core integrity fell below 50% 5313 | -8/Garrison | Discovered new exit (range 10) 5342 | -8/Garrison | Triggered checkpoint 5540 | -8/Garrison | Build established: Tank 5564 | -8/Garrison | Triggered checkpoint 5716 | -8/Garrison | Triggered checkpoint 5747 | -8/Garrison | Learned Materials security intel 5770 | -8/Garrison | Garrison Relay disabled 5872 | -8/Garrison | Triggered checkpoint 5948 | -8/Garrison | Triggered checkpoint 6001 | -8/Garrison | Garrison Relay disabled 6053 | -8/Garrison | Installed Relay Interface Framework 6073 | -8/Garrison | Discovered new exit (range 10) 6088 | -8/Garrison | Entered Materials 6088 | -8/Materials | Accompanied by 2 allies 6782 | -8/Materials | Build established: Scavenger-Mutant 6935 | -8/Materials | Lost 3 parts (1p1u1w) 6941 | -8/Materials | Discovered new exit (range 4) 6979 | -8/Materials | Entered Factory 6979 | -7/Factory | Evolved 2 slots: Propulsion x1, Utility x1 7408 | -7/Factory | Fabricated Imp. Recalibrator (x2) 7791 | -7/Factory | Cargo convoy interrupted 8331 | -7/Factory | Core integrity fell below 50% 8342 | -7/Factory | Core integrity fell below 20% 8348 | -7/Factory | Destroyed by X-67 Chaingunner with Minigun Last Messages --------------- 08318_ K-01 Serf collects debris. 08319_ Spear follow-up attack on X-67 Chaingunner. 08322_ K-01 Serf collects debris. 08330_ Remote Datajack destroyed. 08332_ Destroyed Kinecellerator. 08332_ K-01 Serf destroyed. 08332_ Imp. Titanium Leg destroyed. 08334_ W-25 Informer destroyed. 08334_ Imp. Titanium Leg destroyed. 08336_ X-67 Chaingunner destroyed. 08336_ Imp. Titanium Leg destroyed. 08336_ Destroyed Imp. Titanium Leg. 08336_ M-13 Machinist destroyed. 08339_ Hvy. Rocket Launcher destroyed. 08343_ Katana destroyed. 08345_ The unstable cave ceiling collapses. 08345_ Hvy. Rocket Launcher destroyed. 08345_ Destroyed Hvy. Rocket Launcher. 08345_ Y-54 Guardian destroyed. Map ----- +----------------------------------------------------+ | ?????????????????# """ # # #??????????? | | ?????????????????# # # #??????????? | | ?????????????????######## # "" #??????????? | | ????????????????????????# # """ #??????????? | | ????????????????????????# + T" #??????????? | | ????????????????????????#### # """ #??????????? | | ???????????????????????????# # "" #??????????? | | ???????????????????????????# # #??????????? | | ???????????????????????????# ##########??????????? | | ?????????????############### #???????????????????? | | ?????????????# ## #???????????????????? | | ?????????????# * ## #???????????????????? | | ?????????????# ## #???????????????????? | | ?????????????# ! + #???????????????????? | | ?????????????# ## #???????????????????? | | ?????????????# %! ## #???????????????????? | | ????????????? = ## #???????????????????? | | ????????????? ## #???????????????????? | | ????????????# # #???????????????????? | | ????????????? ! ; #???????????????????? | | ?????????????# #???????????????????? | | ?????????????# ########+###????????? | | ??????############+ ???????? | | ??????# * ???????? | | ??????# x % ??????? | | ??????# @ ! ??????? | | ??????# ######### ??????? | | ????????????# #########??????????? | | ????????????# ?????????????????? | | ???????????## ## ???#???###?????? | | ???????????##"" ### ?????????????? | | ???????????##"" ### #????????????? | | ???????????##"T ### """ """ #????????????? | | #??????????##"" ### """ """ #????????????? | | #??????????##"" ### """ """ !#????????????? | | #??????????## ### ??#????????????? | | #??????????#####+####### """ ""????????????????? | | #?????########## ####### ""??""????????????????? | | #?????########## ####### [ "?????????????????????? | | #?????########## ####### ??????????????????????? | | ???????###### ########+#??????????????????????? | | ???????###### % ######## ##########?????????????? | | ???????###### # =# ##########?????????????? | | ???????###### + ! * # ##########?????????????? | | ???????######### # !# ##########?????????????? | | ???????######## # # ##########?????????????? | | ???????????####T # ! # ##########?????????????? | | ???????????##### # = # ##########???#####?????? | | ??????????###### # ==[ # ##########???#####?????? | | ??????????+ / [[ # ##########???#####?????? | +----------------------------------------------------+ Best States ------------- Heat Dissipation 39 Energy Generation 18 Energy Capacity 265 Matter Stores 300 Matter Capacity 300 Sight Range 16 Robot Scan Range 15 Terrain Scan Density 10 Armor Coverage 450 Resistance: KI 20 Evasion (%) 55 Recoil Reduction 2 Offensive Hacking 10 Defensive Hacking 10 Relay Coupler Types 3 Relay Coupler Value 52 Item Schematics ----------------- None Robot Schematics ------------------ None Fabricated ------------ Imp. Recalibrator | x2 | -7/Factory | Preloaded Alien Tech Used ----------------- None Achievements -------------- A New Friend Challenges ------------ None Game ------ Seed CombatVortexCleaver Manual? 0 Play Time 02:14:26 Cumulative 22.6 hours Start 2024.07.01 @ 00:13:38 End 2024.07.01 @ 02:43:52 Sessions 1 Manual Loads 0 Difficulty Rogue Special Mode None Game No. 17 Rogue 17 Adventurer 0 Explorer 0 Win Type - Total 0 Types 0/0/0/0/0/0/0/0/0 Lore% 20 Gallery% 23 Achievement% 21 Wizard Run 0 Options --------- Layout 1 ASCII 0 Keyboard 0 Movement Mouse Keybinds 0 Fullscreen 1 Font 24/Smallcaps Map View 50x35 Zoom Use 0% Tactical HUD 1 Map Filters NONE Filters NONE Steam 1 RUN: 45ae9a81-0dda-49c6-bfe2-9dbcd20a1b49